bitfinex-derivatives/quotes_SOLF0:USTF0_20250207
["timestamp","ask_amount","ask_price","bid_price","bid_amount"]
[1738924020297,24.06262998,196.94,196.91,10.69623412]
[1738924020498,0.03688362,196.92,196.91,10.69623412]
[1738924022803,0.03688362,196.92,196.91,15.77323412]
[1738924024405,0.03688362,196.92,196.91,10.69623412]
[1738924025711,0.03688362,196.92,196.91,15.77323412]
[1738924026408,68.00015261,197.03,196.95,5.0759]
[1738924026710,3.2673,197.03,196.98,10.69623412]
[1738924027411,5.0743,197.02,196.98,10.69623412]
[1738924027612,5.10787238,197.02,196.99,0.03626318]
[1738924028508,0.03357238,197.02,197.0,10.69623412]
[1738924028908,20.87602998,197.04,197.03,5.0739]
[1738924029211,1.634,197.08,197.02,10.69623412]
[1738924029405,1.634,197.08,197.05,10.69623412]
[1738924030002,6.7069,197.08,197.05,10.69623412]
[1738924030202,6.74368188,197.08,197.05,10.73091539]
[1738924030604,6.74368188,197.08,197.05,0.03468127]
[1738924030806,1.67078188,197.08,197.05,0.03468127]
[1738924031207,0.03678188,197.08,197.05,0.03468127]
[1738924032513,0.03678188,197.08,197.05,5.10788127]
[1738924032714,0.03678188,197.08,197.05,16.71194087]
[1738924033115,0.03678188,197.08,197.05,21.78534087]
[1738924033417,0.03678188,197.08,197.05,0.03468127]
[1738924034227,5.0729,197.07,197.05,0.03468127]
[1738924034520,0.03678188,197.08,197.05,0.03468127]
[1738924035120,5.0729,197.07,197.05,0.03468127]
[1738924036618,0.03678188,197.08,197.05,0.03468127]
[1738924036824,0.03678188,197.08,196.99,16.6772596]
[1738924037226,5.0736,197.05,196.99,16.6772596]
[1738924037723,3.0596,197.1,197.02,16.6772596]
[1738924037924,0.03591904,197.04,197.02,16.6772596]
[1738924038227,3.0596,197.1,197.02,16.6772596]
[1738924038524,0.03360114,197.05,197.02,16.6772596]
[1738924039917,0.03360114,197.05,197.01,0.03284249]
[1738924041820,0.03360114,197.05,197.02,16.6772596]
[1738924042316,1.4901,197.13,197.02,16.6772596]
[1738924042527,1.4901,197.13,197.07,16.6772596]
[1738924043329,5.10770884,197.12,197.08,0.032158]
[1738924044428,5.0721,197.1,197.08,0.032158]
[1738924045021,5.0724,197.09,197.08,0.032158]
[1738924045422,0.03610884,197.12,197.08,0.032158]
[1738924045624,5.0719,197.11,197.08,0.032158]
[1738924046132,0.03610884,197.12,197.08,0.032158]
[1738924046334,5.10780884,197.12,197.08,0.032158]
[1738924046534,0.03610884,197.12,197.08,0.032158]
[1738924047433,0.03610884,197.12,197.1,16.6772596]
[1738924047832,0.03610884,197.12,197.11,5.0719]
[1738924052038,1.4904,197.19,197.12,5.0715]
[1738924052236,3.1225,197.22,197.16,16.6772596]
[1738924053131,0.03782755,197.21,197.17,0.03201293]
[1738924054038,5.0696,197.2,197.17,0.03201293]
[1738924055042,5.10712755,197.21,197.17,0.03201293]
[1738924058737,5.0701,197.18,197.17,0.03201293]
[1738924058937,1.4914,197.2,197.1,16.6772596]
[1738924059341,5.0706,197.16,197.11,5.0716]
[1738924060145,0.03218888,197.15,197.12,0.03579108]
[1738924063143,5.0714,197.13,197.12,0.03579108]
[1738924063647,5.0724,197.1,197.07,10.66650716]
[1738924063946,13.82040716,197.14,197.07,10.66650716]
[1738924064639,3.1539,197.14,197.04,21.74607919]
[1738924064939,0.0332088,197.12,197.09,0.03550291]
[1738924065141,5.0721,197.11,197.09,0.03550291]
[1738924066646,5.0721,197.1,197.09,0.03550291]
[1738924066847,0.0332088,197.12,197.09,0.03550291]
[1738924067041,5.1049088,197.12,197.09,0.03550291]
[1738924067545,5.0721,197.11,197.09,0.03550291]
[1738924067844,0.0332088,197.12,197.09,0.03550291]
[1738924068346,5.0721,197.1,197.09,0.03550291]
[1738924069747,5.0732,197.06,197.01,16.67247919]
[1738924070143,5.0725,197.09,197.01,16.67247919]
[1738924070346,5.0725,197.09,197.04,16.67247919]
[1738924070847,0.0351087,197.08,197.07,16.67247919]
[1738924071043,3.1539,197.14,197.07,16.67247919]
[1738924071243,3.1539,197.14,197.1,16.67247919]
[1738924071436,5.0713,197.14,197.1,16.67247919]
[1738924072241,5.10673613,197.14,197.1,16.70667218]
[1738924073749,0.03543613,197.14,197.1,16.70667218]
[1738924074249,5.10673613,197.14,197.1,16.70667218]
[1738924074550,0.03543613,197.14,197.1,0.03419299]
[1738924075252,5.0719,197.11,197.1,0.03419299]
[1738924075447,0.03543613,197.14,197.1,0.03419299]
[1738924076251,5.0714,197.13,197.1,0.03419299]
[1738924076750,0.03543613,197.14,197.1,0.03419299]
[1738924077048,5.0714,197.13,197.1,0.03419299]
[1738924079145,5.10663613,197.14,197.1,0.03419299]
[1738924080249,0.03543613,197.14,197.1,0.03419299]
[1738924080553,0.03543613,197.14,197.1,16.70667218]
[1738924081448,0.03543613,197.14,197.1,21.77877218]
[1738924082052,0.03543613,197.14,197.1,16.70667218]
[1738924082850,0.03543613,197.14,197.13,16.67247919]
[1738924083151,20.87602998,197.2,197.13,16.67247919]
[1738924083456,5.0703,197.18,197.13,16.67247919]
[1738924083651,20.87602998,197.2,197.13,16.67247919]
[1738924084053,5.0701,197.18,197.13,16.67247919]
[1738924084352,5.1055695,197.18,197.15,0.03870703]
[1738924086462,0.0354695,197.18,197.15,0.03870703]
[1738924086658,10.66858171,197.16,197.09,10.66858171]
[1738924086859,10.66858171,197.14,197.07,10.66858171]
[1738924087860,0.03445981,197.12,197.09,0.03881309]
[1738924088056,5.0719,197.11,197.09,0.03881309]
[1738924090468,0.03445981,197.12,197.09,10.7073948]
[1738924091678,5.072,197.11,197.09,0.03881309]
[1738924093077,0.03445981,197.12,197.09,10.7073948]
[1738924098878,0.03445981,197.12,197.11,10.66858171]
[1738924100885,5.10605981,197.12,197.11,10.66858171]
[1738924101380,0.03445981,197.12,197.11,10.66858171]
[1738924102186,5.0719,197.11,197.09,10.7073948]
[1738924102387,0.03445981,197.12,197.09,10.7073948]
[1738924102588,0.03445981,197.12,197.09,0.03881309]
[1738924102787,5.0721,197.1,197.09,0.03881309]
[1738924110493,5.10615981,197.12,197.09,10.7073948]
[1738924110696,5.10615981,197.12,197.11,10.66858171]
[1738924111992,5.0719,197.11,197.09,10.7073948]
[1738924113091,0.03445981,197.12,197.1,5.0719]
[1738924113294,0.03445981,197.12,197.11,10.66858171]
[1738924113893,0.03445981,197.12,197.11,15.74048171]
[1738924114597,25.94632998,197.17,197.15,10.66858171]
[1738924114797,20.87602998,197.17,197.15,10.66858171]
[1738924114994,25.94642998,197.17,197.15,10.66858171]
[1738924115794,5.0704,197.17,197.15,10.66858171]
[1738924118896,5.10658802,197.18,197.15,10.66858171]
[1738924119201,5.10658802,197.18,197.17,10.66858171]
[1738924119402,0.03648802,197.18,197.17,10.66858171]
[1738924120600,0.03648802,197.18,197.17,15.73888171]
[1738924120803,0.03648802,197.18,197.17,10.66858171]
[1738924124599,20.87602998,197.25,197.17,10.66858171]
[1738924124803,20.87602998,197.27,197.24,10.66858171]
[1738924125499,20.87602998,197.27,197.26,10.66858171]
[1738924125705,20.91383538,197.27,197.26,10.66858171]
[1738924126094,55.7220762,197.29,197.26,10.66858171]
[1738924126299,60.44846889,197.3,197.28,15.73608171]
[1738924126502,60.44846889,197.3,197.28,10.66858171]
[1738924127205,53.00768087,197.3,197.28,10.66858171]
[1738924127505,52.20928087,197.3,197.28,10.66858171]
[1738924127903,185.15506646,197.31,197.29,5.0673]
[1738924128104,0.03431886,197.31,197.3,10.66858171]
[1738924129407,21.09352013,197.36,197.3,10.66858171]
[1738924129598,26.15902013,197.36,197.35,10.66858171]
[1738924131007,5.0657,197.35,197.34,0.03245851]
[1738924131203,21.09352013,197.36,197.31,10.66858171]
[1738924131405,1.62972331,197.37,197.31,10.66858171]
[1738924132207,5.0663,197.33,197.32,0.03791979]
[1738924132708,10.66858171,197.36,197.29,10.66858171]
[1738924133007,10.66858171,197.34,197.27,10.66858171]
[1738924133403,5.0671,197.3,197.27,10.66858171]
[1738924134105,5.10545274,197.3,197.27,10.70266813]
[1738924134609,0.03835274,197.3,197.27,0.03408642]
[1738924135310,5.0675,197.29,197.27,0.03408642]
[1738924136112,5.0675,197.28,197.27,0.03408642]
[1738924138409,6.65985274,197.3,197.27,0.03408642]
[1738924138708,1.59265274,197.3,197.27,0.03408642]
[1738924139313,5.0675,197.29,197.27,0.03408642]
[1738924140113,5.0675,197.28,197.27,0.03408642]
[1738924143916,1.59265274,197.3,197.2,16.64122271]
[1738924144117,1.5543,197.3,197.2,16.64122271]
[1738924144718,5.0686,197.24,197.2,16.64122271]
[1738924144918,1.5543,197.3,197.2,16.64122271]
[1738924145112,5.0689,197.23,197.2,16.67528105]
[1738924146115,0.03632359,197.24,197.2,16.67528105]
[1738924146322,0.03632359,197.24,197.23,16.64122271]
[1738924147521,1.5543,197.3,197.26,16.64122271]
[1738924147717,5.0673,197.29,197.26,16.64122271]
[1738924148420,5.10512505,197.29,197.26,16.6794304]
[1738924148619,0.03782505,197.29,197.26,21.7472304]
[1738924150813,0.03782505,197.29,197.26,16.6794304]
[1738924151521,0.03782505,197.29,197.26,0.03820769]
[1738924151920,5.0678,197.28,197.26,0.03820769]
[1738924152716,5.0678,197.27,197.26,0.03820769]
[1738924152917,1.65182505,197.29,197.23,16.64122271]
[1738924153322,5.068,197.27,197.23,16.64122271]
[1738924154121,5.068,197.27,197.23,16.67839656]
[1738924155919,1.65182505,197.29,197.23,16.67839656]
[1738924156118,5.0681,197.26,197.23,16.67839656]
[1738924156622,5.0681,197.26,197.24,10.65329566]
[1738924159423,5.0683,197.25,197.24,10.65329566]
[1738924164827,5.0685,197.24,197.23,0.03717385]
[1738924171733,5.0681,197.26,197.23,0.03717385]
[1738924171922,5.0681,197.26,197.25,10.65329566]
[1738924172327,5.0678,197.27,197.25,10.65329566]
[1738924172928,5.068,197.26,197.25,10.65329566]
[1738924178433,5.0685,197.24,197.23,10.69046951]
[1738924178634,5.0685,197.24,197.23,0.03717385]
[1738924182737,9.24462369,197.24,197.23,0.03717385]
[1738924184439,4.17612369,197.24,197.19,10.65329566]
[1738924184635,4.17612369,197.24,197.17,10.65329566]
[1738924185132,5.0695,197.21,197.17,10.65329566]
[1738924185536,5.0698,197.2,197.17,10.68585399]
[1738924185736,0.03496715,197.21,197.17,10.68585399]
[1738924186239,5.0698,197.2,197.17,10.68585399]
[1738924186640,0.03496715,197.21,197.19,10.65329566]
[1738924186844,5.10436715,197.21,197.19,10.65329566]
[1738924187142,0.03496715,197.21,197.19,10.65329566]
[1738924187544,21.15324252,197.28,197.19,10.65329566]
[1738924187742,21.15324252,197.28,197.26,10.65329566]
[1738924187939,5.0679,197.27,197.24,10.65329566]
[1738924188244,21.15324252,197.28,197.24,10.65329566]
[1738924188544,5.0688,197.23,197.22,10.65329566]
[1738924189143,10.65329566,197.27,197.21,0.03790025]
[1738924189342,10.65329566,197.27,197.2,10.65329566]
[1738924189544,5.0688,197.24,197.22,0.03611048]
[1738924190342,5.0688,197.23,197.22,10.68940614]
[1738924195148,5.0688,197.23,197.22,0.03611048]
[1738924196450,5.0688,197.23,197.22,10.68940614]
[1738924197544,0.03608231,197.26,197.22,10.68940614]
[1738924197749,5.0686,197.24,197.22,10.68940614]
[1738924198751,0.03608231,197.26,197.22,10.68940614]
[1738924198950,5.0688,197.23,197.22,10.68940614]
[1738924201856,5.0688,197.23,197.22,0.03611048]
[1738924202552,0.03608231,197.26,197.22,0.03611048]
[1738924202758,0.03608231,197.26,197.24,10.65329566]
[1738924203058,0.03608231,197.26,197.22,0.03611048]
[1738924203857,5.0688,197.23,197.22,0.03611048]
[1738924205160,5.0697,197.2,197.18,10.65329566]
[1738924205755,1.6188,197.24,197.18,10.65329566]
[1738924206156,4.21440447,197.23,197.19,0.03460421]
[1738924206557,9.24872611,197.22,197.19,0.03460421]
[1738924207162,5.0693,197.22,197.19,0.03460421]
[1738924207862,0.03497836,197.23,197.2,10.65329566]
[1738924208461,0.03497836,197.23,197.22,10.65329566]
[1738924211066,21.15324252,197.29,197.22,10.65329566]
[1738924211265,21.15324252,197.29,197.27,10.65329566]
[1738924211863,21.15324252,197.29,197.23,10.65329566]
[1738924212167,5.0678,197.27,197.23,10.65329566]
[1738924212370,5.0678,197.27,197.24,0.03395537]
[1738924212771,5.0678,197.27,197.25,10.65329566]
[1738924214668,5.0683,197.25,197.24,0.03395537]
[1738924216276,9.22413895,197.25,197.24,0.03395537]
[1738924217277,4.15583895,197.25,197.24,0.03395537]
[1738924218379,5.10122859,197.28,197.24,0.03395537]
[1738924220083,0.03372859,197.28,197.25,10.65329566]
[1738924220275,0.03372859,197.28,197.27,10.65329566]
[1738924220880,0.03372859,197.28,197.25,10.65329566]
[1738924221380,5.10132859,197.28,197.25,10.65329566]
[1738924222077,0.03372859,197.28,197.25,10.65329566]
[1738924222280,0.03372859,197.28,197.24,0.03395537]
[1738924223483,0.03372859,197.28,197.25,15.72149566]
[1738924223878,0.03372859,197.28,197.25,10.65329566]
[1738924227485,0.03372859,197.28,197.25,10.65070026]
[1738924228085,5.10132859,197.28,197.25,10.65070026]
[1738924228786,5.0678,197.27,197.25,10.65070026]
[1738924230483,0.03372859,197.28,197.25,10.65070026]
[1738924231084,0.03372859,197.28,197.27,15.71850026]
[1738924231287,22.74894252,197.34,197.27,10.65070026]
[1738924231486,22.74894252,197.34,197.32,10.65070026]
[1738924232888,27.81494252,197.34,197.32,10.65070026]
[1738924233291,21.15324252,197.34,197.33,10.6444763]
[1738924233589,0.03202176,197.35,197.33,10.6444763]
[1738924234989,21.15324252,197.39,197.33,10.6444763]
[1738924235191,21.15324252,197.39,197.38,10.6444763]
[1738924236386,0.03774107,197.4,197.39,5.0647]
[1738924236593,0.03774107,197.4,197.39,21.67794978]
[1738924236793,21.15324252,197.45,197.39,16.61324978]
[1738924236993,21.15324252,197.45,197.42,16.61324978]
[1738924238094,21.18544219,197.45,197.42,16.64805071]
[1738924238993,55.99142052,197.46,197.42,16.64805071]
[1738924239184,55.99142052,197.46,197.45,16.61324978]
[1738924239896,5.0622,197.49,197.45,16.61324978]
[1738924240196,0.03460031,197.47,197.45,16.61324978]
[1738924241294,0.03460031,197.47,197.45,21.67634978]
[1738924244405,0.03460031,197.47,197.46,5.0629]
[1738924245204,4.8238,197.56,197.49,5.0621]
[1738924245598,4.8238,197.56,197.48,16.61324978]
[1738924245800,1.603,197.56,197.5,5.0616]
[1738924246406,0.03708419,197.55,197.51,21.70689761]
[1738924246800,5.0603,197.57,197.51,21.67474978]
[1738924247006,5.0609,197.54,197.51,0.03576936]
[1738924247306,5.0609,197.54,197.48,16.61324978]
[1738924247507,0.03288134,197.54,197.51,0.03651778]
[1738924247706,5.0614,197.52,197.51,0.03651778]
[1738924248206,3.1689,197.53,197.42,16.61324978]
[1738924248407,5.0632,197.45,197.39,125.18678285]
[1738924249102,16.61324978,197.52,197.39,125.18678285]
[1738924249308,0.03520137,197.44,197.4,0.03704898]
[1738924249504,0.03520137,197.44,197.39,125.18678285]
[1738924249700,16.61324978,197.52,197.42,16.61324978]
[1738924250307,0.03714266,197.49,197.45,0.03893321]
[1738924250606,5.0626,197.48,197.45,0.03893321]
[1738924253601,0.03714266,197.49,197.45,0.03893321]
[1738924253808,5.0629,197.46,197.45,0.03893321]
[1738924254508,5.0627,197.47,197.45,0.03893321]
[1738924254914,0.03714266,197.49,197.45,0.03893321]
[1738924255310,5.0628,197.47,197.45,0.03893321]
[1738924255710,0.03714266,197.49,197.45,0.03893321]
[1738924255912,5.0629,197.46,197.45,0.03893321]
[1738924256813,0.03714266,197.49,197.43,10.63215178]
[1738924257014,5.0634,197.44,197.41,10.63215178]
[1738924258014,5.09551879,197.44,197.41,10.67046459]
[1738924259514,0.03211879,197.44,197.43,10.63215178]
[1738924260719,0.03211879,197.44,197.43,15.69585178]
[1738924260919,3.1689,197.53,197.43,10.63215178]
[1738924261116,3.1689,197.53,197.48,10.63215178]
[1738924261314,5.0618,197.51,197.48,10.63215178]
[1738924261514,3.1689,197.53,197.48,10.63215178]
[1738924261918,5.0615,197.52,197.48,10.63215178]
[1738924262121,0.03841157,197.52,197.49,0.03238114]
[1738924262315,0.03841157,197.52,197.5,10.63215178]
[1738924264625,0.03841157,197.52,197.49,0.03238114]
[1738924265119,5.0619,197.5,197.49,0.03238114]
[1738924265313,0.03841157,197.52,197.42,16.59985588]
[1738924265627,16.59985588,197.52,197.39,125.17338895]
[1738924265817,5.0624,197.49,197.39,130.23808895]
[1738924266017,16.59985588,197.52,197.39,130.23808895]
[1738924266417,5.0629,197.46,197.44,0.03421682]
[1738924266627,0.03689358,197.47,197.44,0.03421682]
[1738924266825,0.03689358,197.47,197.39,108.57353307]
[1738924267123,5.0642,197.41,197.39,108.57353307]
[1738924268018,5.0642,197.41,197.38,0.03234448]
[1738924268227,5.0645,197.4,197.38,0.03234448]
[1738924269521,5.0642,197.41,197.38,0.03234448]
[1738924269725,0.03590225,197.42,197.38,0.03234448]
[1738924270724,5.0642,197.41,197.38,0.03234448]
[1738924272227,5.0645,197.4,197.38,0.03234448]
[1738924273818,0.03590225,197.42,197.38,0.03234448]
[1738924274023,0.03590225,197.42,197.39,16.59985588]
[1738924274429,5.09980225,197.42,197.39,16.59985588]
[1738924274729,0.03590225,197.42,197.38,0.03234448]
[1738924275231,5.0647,197.4,197.38,0.03234448]
[1738924275430,0.03590225,197.42,197.38,0.03234448]
[1738924275623,5.0647,197.39,197.38,0.03234448]
[1738924279029,1.5299,197.41,197.3,21.66685588]
[1738924279325,1.5548,197.38,197.3,16.59985588]
[1738924279731,5.0661,197.34,197.3,16.59985588]
[1738924280229,5.10079965,197.34,197.3,16.63707948]
[1738924281330,0.03469965,197.34,197.3,0.0372236]
[1738924281525,0.03469965,197.34,197.24,16.59985588]
[1738924281829,0.03469965,197.34,197.28,16.59985588]
[1738924282027,1.5548,197.38,197.28,16.59985588]
[1738924282334,5.0658,197.35,197.29,5.067]
[1738924282630,0.03313393,197.34,197.31,16.59985588]
[1738924282833,1.5548,197.38,197.31,16.59985588]
[1738924283026,0.03280209,197.34,197.31,16.63629252]
[1738924283226,0.03280209,197.34,197.31,21.70299252]
[1738924284032,0.03280209,197.34,197.31,16.63629252]
[1738924284832,0.03280209,197.34,197.31,0.03643664]
[1738924285032,0.03280209,197.34,197.28,16.59985588]
[1738924285333,5.067,197.3,197.28,16.59985588]
[1738924285532,5.067,197.3,197.25,16.59985588]
[1738924285729,0.03280209,197.34,197.25,16.59985588]
[1738924285926,1.5548,197.38,197.25,16.59985588]
[1738924286333,0.03817108,197.33,197.3,0.03594122]
[1738924286526,5.0667,197.31,197.3,0.03594122]
[1738924287837,0.03817108,197.33,197.3,0.03594122]
[1738924288334,0.03817108,197.33,197.31,5.0666]
[1738924288839,0.03817108,197.33,197.3,0.03594122]
[1738924289839,0.03817108,197.33,197.3,5.10284122]
[1738924290044,0.03817108,197.33,197.3,0.03594122]
[1738924291240,5.10457108,197.33,197.3,0.03594122]
[1738924291439,0.03817108,197.33,197.3,0.03594122]
[1738924292040,5.0667,197.31,197.3,0.03594122]
[1738924293237,0.03817108,197.33,197.25,16.59985588]
[1738924293539,0.03817108,197.33,197.19,16.59985588]
[1738924293939,16.59985588,197.34,197.19,16.59985588]
[1738924294433,5.0684,197.25,197.21,5.0692]
[1738924294835,5.068,197.26,197.22,5.069]
[1738924295043,0.03426582,197.28,197.22,16.59985588]
[1738924295842,5.10186582,197.28,197.23,5.0687]
[1738924296035,0.03426582,197.28,197.22,16.59985588]
[1738924296436,5.0686,197.24,197.21,0.03212621]
[1738924297943,0.03426582,197.28,197.21,0.03212621]
[1738924297944,5.0688,197.23,197.21,0.03212621]
[1738924298336,0.03495543,197.24,197.21,0.03212621]
[1738924299745,5.10355543,197.24,197.21,0.03212621]
[1738924301737,5.069,197.22,197.21,0.03212621]
[1738924305846,5.0699,197.19,197.14,5.0709]
[1738924307047,0.03834595,197.18,197.15,0.02669584]
[1738924307443,5.0704,197.17,197.15,0.02669584]
[1738924308045,5.10844595,197.18,197.15,0.02669584]
[1738924308346,0.03834595,197.18,197.15,0.02669584]
[1738924310654,0.03834595,197.18,197.15,10.68813836]
[1738924314759,0.03834595,197.18,197.17,10.66144252]
[1738924315760,0.03834595,197.18,197.17,15.73174252]
[1738924316661,0.03834595,197.18,197.17,21.72020619]
[1738924317960,1.6367,197.27,197.21,5.0691]
[1738924318157,1.6367,197.27,197.2,16.64990619]
[1738924318861,6.7045,197.27,197.22,5.069]
[1738924319058,0.03674841,197.26,197.23,0.03517953]
[1738924321072,0.03674841,197.26,197.23,16.68508572]
[1738924321363,21.07705362,197.36,197.23,16.68508572]
[1738924321555,21.07705362,197.36,197.28,16.64990619]
[1738924321762,21.07705362,197.36,197.25,16.64990619]
[1738924321959,1.5021,197.35,197.25,16.64990619]
[1738924322259,16.64990619,197.33,197.22,16.64990619]
[1738924322453,16.64990619,197.33,197.11,193.0662]
[1738924322454,16.64990619,197.33,197.19,16.64990619]
[1738924322658,5.0672,197.29,197.28,0.03269857]
[1738924322867,16.64990619,197.3,197.19,16.64990619]
[1738924323060,16.64990619,197.3,197.12,0.4016]
[1738924323061,16.68526866,197.3,197.27,0.03462213]
[1738924323261,16.68526866,197.3,197.16,16.64990619]
[1738924323458,16.64990619,197.27,197.16,16.64990619]
[1738924323657,0.03798332,197.25,197.13,16.64990619]
[1738924323859,3.1636,197.26,197.13,16.64990619]
[1738924323860,16.64990619,197.24,197.13,16.64990619]
[1738924324059,16.64990619,197.24,197.1,16.64990619]
[1738924324259,5.0703,197.17,197.1,16.64990619]
[1738924324454,16.64990619,197.21,197.1,16.64990619]
[1738924324763,0.03724303,197.15,197.12,0.03652076]
[1738924327668,0.03724303,197.15,197.04,16.64990619]
[1738924327966,16.64990619,197.15,197.04,16.64990619]
[1738924328866,5.10800017,197.11,197.08,0.02727751]
[1738924329965,5.0722,197.1,197.08,0.02727751]
[1738924330264,0.03590017,197.11,197.08,0.02727751]
[1738924330465,5.073,197.07,197.03,108.7536243]
[1738924330766,5.073,197.07,196.98,16.64990619]
[1738924331568,0.03521598,197.04,196.98,16.64990619]
[1738924331866,0.03521598,197.04,197.0,5.0746]
[1738924332368,0.03521598,197.04,196.98,16.64990619]
[1738924333159,0.03521598,197.04,197.01,16.64990619]
[1738924333762,0.03521598,197.04,197.03,5.0739]
[1738924334769,4.6252,197.17,197.01,16.64990619]
[1738924334969,4.6252,197.17,197.06,16.64990619]
[1738924335462,4.6252,197.17,197.05,5.0733]
[1738924335971,0.03590697,197.13,197.09,0.03256999]
[1738924336770,5.0718,197.12,197.09,0.03256999]
[1738924337171,0.03590697,197.13,197.09,0.03256999]
[1738924337370,5.0716,197.12,197.09,0.03256999]
[1738924338173,5.10730697,197.13,197.09,0.03256999]
[1738924339769,0.03590697,197.13,197.09,0.03256999]
[1738924340163,0.03590697,197.13,197.09,5.10476999]
[1738924340370,0.03590697,197.13,197.09,0.03256999]
[1738924342466,0.03590697,197.13,197.09,5.10466999]
[1738924342763,0.03590697,197.13,197.09,0.03256999]
[1738924342968,0.03590697,197.13,197.09,16.68247618]
[1738924343170,0.03590697,197.13,197.12,5.0716]
[1738924343561,0.00390697,197.13,197.12,21.72150619]
[1738924343767,3.1488,197.24,197.17,5.0702]
[1738924344067,3.1488,197.24,197.18,16.64990619]
[1738924344263,3.1488,197.24,197.21,5.0693]
[1738924344465,3.1488,197.24,197.18,16.64990619]
[1738924344466,55.99142052,197.27,197.18,16.64990619]
[1738924344666,55.99142052,197.27,197.21,16.64990619]
[1738924344973,0.03238483,197.24,197.22,5.069]
[1738924347273,0.03238483,197.24,197.21,16.64990619]
[1738924347274,0.03238483,197.24,197.23,5.0688]
[1738924347675,4.7394,197.35,197.21,16.64990619]
[1738924347871,4.7394,197.35,197.2,16.68762642]
[1738924347872,9.8051,197.35,197.28,5.0674]
[1738924348071,4.7394,197.35,197.27,16.64990619]
[1738924348967,0.0368591,197.33,197.29,0.03205462]
[1738924349573,5.0665,197.32,197.29,0.03205462]
[1738924350178,0.0368591,197.33,197.29,0.03205462]
[1738924350779,5.0667,197.32,197.29,0.03205462]
[1738924351281,0.0368591,197.33,197.29,0.03205462]
[1738924352781,5.0668,197.31,197.29,0.03205462]
[1738924353281,5.067,197.3,197.29,0.03205462]
[1738924355475,0.0368591,197.33,197.29,0.03205462]
[1738924356281,5.067,197.3,197.29,0.03205462]
[1738924356779,16.68676529,197.33,197.21,16.64990619]
[1738924356979,16.64990619,197.33,197.21,16.64990619]
[1738924357574,16.64990619,197.3,197.18,16.64990619]
[1738924357774,5.0688,197.23,197.16,5.0704]
[1738924357983,5.0688,197.23,197.22,0.03623871]
[1738924358184,16.64990619,197.27,197.15,16.64990619]
[1738924358385,0.03533605,197.24,197.21,0.03587563]
[1738924358587,16.68524224,197.24,197.12,16.64990619]
[1738924358779,16.64990619,197.24,197.12,16.64990619]
[1738924359180,16.64990619,197.24,197.09,16.64990619]
[1738924359379,5.0708,197.16,197.09,16.64990619]
[1738924359782,0.03601778,197.14,197.11,0.0352611]
[1738924360585,5.0716,197.12,197.11,0.0352611]
[1738924361889,5.0714,197.13,197.11,0.0352611]
[1738924362089,0.03601778,197.14,197.11,0.0352611]
[1738924362491,5.10721778,197.14,197.11,0.0352611]
[1738924362689,0.03601778,197.14,197.11,0.0352611]
[1738924363193,0.03601778,197.14,197.12,5.0716]
[1738924364289,0.03601778,197.14,197.11,0.0352611]
[1738924364290,0.03601778,197.14,197.13,5.0714]
[1738924364692,0.03601778,197.14,197.11,0.0352611]
[1738924364985,0.03601778,197.14,197.13,5.0714]
[1738924365491,0.00031778,197.14,197.13,5.0714]
[1738924365686,5.0688,197.23,197.16,5.0704]
[1738924366495,5.0688,197.23,197.17,5.0703]
[1738924366795,0.0359481,197.21,197.18,0.03272276]
[1738924369990,5.0698,197.19,197.18,0.03272276]
[1738924370195,0.0359481,197.21,197.18,0.03272276]
[1738924370889,0.0359481,197.21,197.12,26.66299732]
[1738924371089,5.0704,197.17,197.12,26.66299732]
[1738924371395,5.0704,197.17,197.11,5.0718]
[1738924371795,1.5277,197.24,197.11,5.0718]
[1738924371992,0.03509277,197.16,197.12,0.03422526]
[1738924372295,5.0701,197.18,197.11,5.0718]
[1738924372595,0.03329238,197.16,197.12,0.0345502]
[1738924373696,0.03329238,197.16,197.12,26.69754752]
[1738924374293,9.238e-05,197.16,197.15,5.0708]
[1738924375300,1.6378,197.25,197.12,26.69754752]
[1738924375494,1.6378,197.25,197.16,26.66299732]
[1738924375695,1.5933,197.26,197.16,26.66299732]
[1738924375899,1.5933,197.26,197.2,5.0695]
[1738924376100,1.5933,197.26,197.16,26.66299732]
[1738924376400,5.0685,197.24,197.16,26.66299732]
[1738924376603,0.0379182,197.23,197.19,0.03607129]
[1738924376999,5.0693,197.22,197.19,0.03607129]
[1738924377195,0.0379182,197.23,197.1,26.66299732]
[1738924377405,26.66299732,197.25,197.1,26.66299732]
[1738924377999,5.0703,197.18,197.11,5.0718]
[1738924378304,0.03388252,197.16,197.13,0.03210341]
[1738924378602,5.10448252,197.16,197.13,0.03210341]
[1738924379103,0.03388252,197.16,197.13,0.03210341]
[1738924380300,0.03388252,197.16,197.14,5.071]
[1738924380604,0.03388252,197.16,197.13,0.03210341]
[1738924381401,5.0711,197.14,197.13,0.03210341]